fUST/lending_fUST_20250309
["ID","MTS","AMOUNT","RATE_DAILY","PERIOD"]
[355669355,1741450246983,-500.0,0.00048808,98]
[355669357,1741450246992,-498.52942857,0.00048835,120]
[355670925,1741451152131,-163.349648,0.0003589,2]
[355670926,1741451152155,-100.72979844,0.000409,8]
[355670927,1741451154078,-1352.27833743,0.000409,8]
[355670928,1741451154101,-223.5562132,0.0004093,2]
[355670929,1741451154124,-404.89077167,0.00041145,2]
[355670930,1741451225110,-150.0,0.00039045,2]
[355670931,1741451225133,-54.80072333,0.00041145,2]
[355670932,1741451225156,-214.3771458,0.00041302,2]
[355670933,1741451225177,-981.7038311,0.00041637,2]
[355670934,1741451225199,-163.349648,0.0004263,2]
[355670935,1741451225221,-150.0,0.00044045,2]
[355670936,1741451225244,-411.05089399,0.00045431,2]
[355670937,1741451225276,-208.83272207,0.00045431,2]
[355670938,1741451225298,-326.12134171,0.00046546,2]
[355670939,1741451234080,-273.87865829,0.00046546,2]
[355670940,1741451234102,-580.52,0.00046565,10]
[355670941,1741451234127,-404.61559494,0.00046565,10]
[355670942,1741451238088,-503.84048192,0.00046573,10]
[355670943,1741451238111,-500.0,0.00046573,10]
[355670944,1741451238133,-500.0,0.00046573,10]
[355670945,1741451238155,-154.15107004,0.00046574,2]
[355670947,1741451241093,-120.84892996,0.00046574,2]
[355670948,1741451241119,-500.0,0.00046574,2]
[355670949,1741451241143,-500.0,0.00046574,120]
[355670950,1741451241170,-500.0,0.00046574,2]
[355670951,1741451241194,-306.57768769,0.00046574,120]
[355670952,1741451248209,-503.43,0.00046565,10]
[355670953,1741451248234,-193.42231231,0.00046574,120]
[355670954,1741451248256,-607.63073281,0.00046574,120]
[355670955,1741451248281,-500.0,0.00046574,2]
[355670956,1741451248304,-141.13949923,0.00046574,2]
[355670957,1741451318450,61443.71054524,0.000145,2]
[355670963,1741451345073,-151.0,0.0004,60]
[355670964,1741451345094,-500.0,0.0004,2]
[355670965,1741451345225,-23943.3316069,0.00040288,2]
[355670966,1741451345246,-737.51677286,0.00042,120]
[355670967,1741451349187,1404.57453137,0.000429,9]
[355670968,1741451355081,-3440.84693006,0.00043,7]
[355670978,1741451410079,600.0,0.00040263,2]
[355670979,1741451411050,622.2,0.00040811,2]
[355670980,1741451411870,645.2214,0.00041359,2]
[355670981,1741451412521,229.42664293,0.00041907,2]
[355670982,1741451412545,439.66794887,0.00041907,2]
[355670983,1741451413156,1001.9975423,0.00042455,2]
[355671091,1741451432921,-265.0591198,0.00045172,2]
[355671093,1741451432931,-194.38866571,0.00046474,120]
[355671095,1741451432941,-419.52,0.00046565,10]
[355671097,1741451432950,-164.1019145,0.00046565,4]
[355671099,1741451432960,-500.0,0.00046573,2]
[355671101,1741451432969,-500.0,0.00046573,2]
[355671103,1741451432979,-358.86050077,0.00046573,2]
[355671105,1741451432988,-463.9625632,0.00046573,120]
[355671107,1741451432997,-500.0,0.00046573,2]
[355671109,1741451433007,-500.0,0.00046573,2]
[355671111,1741451433017,-500.0,0.00046573,2]
[355671113,1741451433026,-500.0,0.00046573,2]
[355671115,1741451433035,-500.0,0.00046573,2]
[355671117,1741451433044,-500.0,0.00046573,2]
[355671119,1741451433053,-500.0,0.00046573,2]
[355671121,1741451433063,-500.0,0.00046573,2]
[355671123,1741451433073,-500.0,0.00046573,2]
[355671125,1741451433082,-500.0,0.00046573,2]
[355671127,1741451433092,-500.0,0.00046573,2]
[355671129,1741451433101,-500.0,0.00046573,2]
[355671131,1741451433112,-500.0,0.00046573,2]
[355671133,1741451433122,-500.0,0.00046573,2]
[355671135,1741451433132,-500.0,0.00046573,2]
[355671137,1741451433142,-500.0,0.00046573,2]
[355671139,1741451433152,-500.0,0.00046573,2]
[355671141,1741451433162,-500.0,0.00046573,2]
[355671143,1741451433172,-500.0,0.00046573,2]
[355671145,1741451433183,-500.0,0.00046573,2]
[355671147,1741451433192,-500.0,0.00046573,2]
[355671149,1741451433202,-500.0,0.00046573,2]
[355671151,1741451433212,-221.78016308,0.00046573,2]
[355671153,1741451433222,-500.0,0.00046573,120]
[355671155,1741451433231,-500.0,0.00046573,120]
[355671157,1741451433241,-516.31789432,0.00046573,120]
[355671159,1741451433251,-490.9333,0.00046574,30]
[355671161,1741451433261,-500.0,0.00046574,31]
[355671163,1741451433271,-500.0,0.00046574,31]
[355671165,1741451433280,-500.0,0.00046574,31]
[355671167,1741451433290,-500.0,0.00046574,31]
[355671169,1741451433299,-500.0,0.00046574,31]
[355671171,1741451433309,-445.78934688,0.00046574,31]
[355671173,1741451433318,-500.0,0.00046574,31]
[355671175,1741451433328,-500.0,0.00046574,31]
[355671177,1741451433337,-500.0,0.00046574,31]
[355671179,1741451433347,-500.0,0.00046574,31]
[355671181,1741451433356,-285.78188656,0.00046575,2]
[355671183,1741451433368,-76.42791918,0.00046575,120]
[355671371,1741451438627,-419.22567272,0.00046575,120]
[355671372,1741451438637,-1000.0,0.00046575,2]
[355671373,1741451438647,-500.0,0.00046575,120]
[355671374,1741451438658,-500.0,0.00046575,120]
[355671375,1741451438672,-500.0,0.00046575,120]
[355671376,1741451438681,-500.0,0.00046575,120]
[355671377,1741451438691,-500.0,0.00046575,120]
[355671378,1741451438701,-500.0,0.00046575,120]
[355671379,1741451438712,-333.0737851,0.00046575,120]
[355671380,1741451438721,-500.0,0.00046575,120]
[355671381,1741451438731,-347.35096639,0.00046575,120]
[355671382,1741451438740,-500.0,0.00046575,120]
[355671383,1741451438750,-500.0,0.00046575,120]
[355671385,1741451438759,-500.0,0.00046575,120]
[355671387,1741451438769,-500.0,0.00046575,120]
[355671389,1741451438778,-500.0,0.00046575,120]
[355671391,1741451438788,-500.0,0.00046575,120]
[355671393,1741451438797,-520.18476513,0.00046575,120]
[355671395,1741451438807,-500.0,0.00046575,120]
[355671397,1741451438817,-500.0,0.00046575,5]
[355671398,1741451438826,-500.0,0.00046575,120]
[355671399,1741451438835,-535.74191994,0.00046575,120]
[355671400,1741451438845,-500.0,0.00046575,120]
[355671401,1741451438854,-450.83335965,0.00046575,120]
[355671402,1741451438866,-500.97,0.00046575,120]
[355671403,1741451438875,-564.24398665,0.00046575,120]
[355671404,1741451438884,-500.0,0.00046575,120]
[355671405,1741451438894,-500.0,0.00046575,120]
[355671406,1741451438904,-500.0,0.00046575,120]
[355671407,1741451438915,-500.0,0.00046575,120]
[355671408,1741451438925,-500.0,0.00046575,120]
[355671409,1741451438935,-528.89,0.00046575,120]
[355671410,1741451438944,-494.58804031,0.00046575,120]
[355671411,1741451438953,-1102.06,0.00046575,120]
[355671412,1741451438963,-500.0,0.00046575,120]
[355671413,1741451438972,-500.0,0.00046575,120]
[355671414,1741451438982,-500.0,0.00046575,120]
[355671415,1741451438991,-297.71,0.00046575,120]
[355671416,1741451439001,-500.0,0.00046575,120]
[355671417,1741451439010,-500.0,0.00046575,120]
[355671418,1741451439020,-500.0,0.00046575,120]
[355671419,1741451439030,-500.0,0.00046575,120]
[355671420,1741451439039,-500.0,0.00046575,120]
[355671421,1741451439048,-2067.1,0.00046575,120]
[355671422,1741451439058,-500.0,0.00046575,120]
[355671423,1741451439068,-500.0,0.00046575,120]
[355671424,1741451439077,-511.95814668,0.00046575,120]
[355671425,1741451439087,-508.69331106,0.00046575,120]
[355671426,1741451439096,-500.0,0.00046575,120]
[355671427,1741451439106,-340.48,0.00046575,120]
[355671428,1741451439117,-519.53629376,0.00046575,120]
[355671429,1741451439127,-506.72108897,0.00046575,120]
[355671430,1741451439137,-500.0,0.00046575,120]
[355671431,1741451439147,-500.0,0.00046575,120]
[355671432,1741451439156,-500.0,0.00046575,120]
[355671433,1741451439166,-500.0,0.00046575,120]
[355671434,1741451439175,-500.0,0.00046575,120]
[355671435,1741451439185,-509.69120795,0.00046575,120]
[355671436,1741451439195,-2681.45,0.00046575,2]
[355671437,1741451439205,-586.88,0.00046575,120]
[355671438,1741451439214,-500.0,0.00046575,120]
[355671439,1741451439224,-500.0,0.00046575,120]
[355671440,1741451439233,-517.36,0.00046575,120]
[355671441,1741451439242,-500.0,0.00046575,120]
[355671442,1741451439252,-547.04,0.00046575,120]
[355671443,1741451439261,-500.0,0.00046575,120]
[355671444,1741451439271,-500.0,0.00046575,120]
[355671445,1741451439280,-500.0,0.00046575,120]
[355671446,1741451439290,-3568.64,0.00046575,120]
[355671447,1741451439299,-519.9983833,0.00046575,120]
[355671448,1741451439309,-500.0,0.00046575,120]
[355671449,1741451439318,-500.0,0.00046575,120]
[355671450,1741451439328,-8885.22,0.00046575,7]
[355671451,1741451439337,-9188.01,0.00046575,120]
[355671452,1741451439347,-2637.8,0.00046575,120]
[355671453,1741451439465,-155.75263644,0.00046575,120]
[355671454,1741451439479,-500.0,0.00046575,120]
[355671455,1741451439488,-500.0,0.00046575,120]
[355671456,1741451439498,-500.0,0.00046575,120]
[355671457,1741451439507,-500.0,0.00046575,120]
[355671458,1741451439516,-540.80990144,0.00046575,120]
[355671459,1741451439525,-529.13705929,0.00046575,120]
[355671460,1741451439535,-519.19632612,0.00046575,2]
[355671461,1741451439544,-696.54,0.00046575,120]
[355671462,1741451439553,-3766.75,0.00046575,120]
[355671463,1741451439564,-508.16543719,0.00046575,120]
[355671464,1741451439573,-500.0,0.00046575,120]
[355671465,1741451439583,-500.0,0.00046575,120]
[355671466,1741451439592,-500.0,0.00046575,120]
[355671467,1741451439602,-500.0,0.00046575,120]
[355671468,1741451439611,-1421.86,0.00046575,120]
[355671469,1741451439621,-500.0,0.00046575,120]
[355671470,1741451439632,-500.0,0.00046575,120]
[355671471,1741451439643,-5519.641432,0.00046575,7]
[355671472,1741451439654,-500.0,0.00046575,120]
[355671473,1741451439665,-500.0,0.00046575,120]
[355671474,1741451439676,-757.63,0.00046575,120]
[355671475,1741451439685,-769.52,0.00046575,120]
[355671476,1741451439694,-503.66127661,0.00046575,120]
[355671477,1741451439703,-500.0,0.00046575,120]
[355671478,1741451439713,-532.11,0.00046575,120]
[355671479,1741451439722,-500.0,0.00046575,120]
[355671480,1741451439731,-500.0,0.00046575,120]
[355671481,1741451439740,-500.0,0.00046575,120]
[355671482,1741451439751,-500.0,0.00046575,120]
[355671483,1741451439761,-500.0,0.00046575,120]
[355671484,1741451439770,-500.0,0.00046575,120]
[355671485,1741451439779,-638.11,0.00046575,120]
[355671486,1741451439788,-500.0,0.00046575,120]
[355671487,1741451439797,-500.0,0.00046575,2]
[355671488,1741451439806,-500.0,0.00046575,120]
[355671489,1741451439816,-521.16974938,0.00046575,120]
[355671490,1741451439825,-500.0,0.00046575,120]
[355671491,1741451439834,-500.0,0.00046575,120]
[355671492,1741451439844,-500.0,0.00046575,120]
[355671493,1741451439853,-500.0,0.00046575,120]
[355671494,1741451439862,-533.37,0.00046575,2]
[355671495,1741451439872,-500.0,0.00046575,120]
[355671496,1741451439881,-1000.0,0.00046575,2]
[355671497,1741451439891,-500.0,0.00046575,120]
[355671498,1741451439901,-500.0,0.00046575,120]
[355671499,1741451439910,-500.0,0.00046575,120]
[355671500,1741451439927,-157.05090958,0.00046749,2]
[355671501,1741451439942,-164.1019145,0.00046839,4]
[355671502,1741451439951,-1224.78,0.00046846,120]
[355671503,1741451439961,-500.0,0.00046846,120]
[355671504,1741451439971,-500.0,0.00046847,120]
[355671505,1741451439981,-500.0,0.00046847,120]
[355671506,1741451439991,-500.0,0.00046848,120]
[355671507,1741451440001,-500.0,0.00046848,120]
[355671508,1741451440011,-500.0,0.00046848,120]
[355671509,1741451440021,-500.0,0.00046848,120]
[355671510,1741451440032,-192.9,0.00046848,30]
[355671511,1741451440041,-255.16,0.00046848,120]
[355671512,1741451440051,-500.0,0.00046848,120]
[355671513,1741451440061,-500.0,0.00046848,120]
[355671514,1741451440071,-659.79421972,0.00046849,2]
[355671515,1741451440081,-500.0,0.00046849,120]
[355671516,1741451440092,-500.0,0.00046849,120]
[355671517,1741451440102,-500.0,0.00046849,120]
[355671518,1741451440113,-500.0,0.00046849,120]
[355671519,1741451440125,-500.0,0.00046849,120]
[355671520,1741451440136,-151.0,0.00046849,120]
[355671521,1741451440146,-151.0,0.00046849,120]
[355671522,1741451440156,-151.0,0.00046849,120]
[355671523,1741451440166,-151.0,0.00046849,120]
[355671524,1741451440176,-151.0,0.00046849,120]
[355671525,1741451440187,-151.0,0.00046849,120]
[355671526,1741451440196,-277.714906,0.00046849,120]
[355671527,1741451440207,-500.0,0.00046849,120]
[355671529,1741451440216,-500.0,0.00046849,120]
[355671530,1741451440226,-500.0,0.00046849,120]
[355671531,1741451440237,-500.0,0.00046849,120]
[355671532,1741451440247,-500.97,0.00046849,120]
[355671533,1741451440257,-500.0,0.00046849,120]
[355671534,1741451440267,-500.0,0.00046849,120]
[355671535,1741451440277,-500.0,0.00046849,120]
[355671536,1741451440287,-528.89,0.00046849,120]
[355671537,1741451440296,-1102.06,0.00046849,120]
[355671538,1741451440306,-500.0,0.00046849,120]
[355671539,1741451440316,-500.0,0.00046849,120]
[355671540,1741451440326,-500.0,0.00046849,120]
[355671542,1741451440335,-500.0,0.00046849,120]
[355671544,1741451440344,-500.0,0.00046849,120]
[355671546,1741451440354,-2067.1,0.00046849,120]
[355671547,1741451440363,-332.52101161,0.00046849,120]
[355671549,1741451440375,-500.0,0.00046849,120]
[355671551,1741451440384,-500.0,0.00046849,120]
[355671553,1741451440394,-500.0,0.00046849,120]
[355671554,1741451440404,-500.0,0.00046849,120]
[355671556,1741451440413,-500.0,0.00046849,120]
[355671558,1741451440423,-2681.45,0.00046849,2]
[355671560,1741451440432,-586.88,0.00046849,120]
[355671562,1741451440442,-500.0,0.00046849,120]
[355671563,1741451440452,-500.0,0.00046849,120]
[355671565,1741451440461,-517.36,0.00046849,120]
[355671567,1741451440471,-500.0,0.00046849,120]
[355671569,1741451440481,-387.03243612,0.00046849,120]
[355671571,1741451440491,-547.04,0.00046849,120]
[355671572,1741451440500,-500.0,0.00046849,120]
[355671574,1741451440510,-500.0,0.00046849,120]
[355671576,1741451440519,-3568.64,0.00046849,120]
[355671578,1741451440529,-500.0,0.00046849,120]
[355671579,1741451440539,-500.0,0.00046849,120]
[355671581,1741451440548,-8885.22,0.00046849,7]
[355671583,1741451440558,-9188.01,0.00046849,120]
[355671585,1741451440568,-2637.8,0.00046849,120]
[355671587,1741451440578,-500.0,0.00046849,120]
[355671588,1741451440587,-500.0,0.00046849,120]
[355671590,1741451440597,-696.54,0.00046849,120]
[355671592,1741451440606,-3766.75,0.00046849,120]
[355671594,1741451440616,-1421.86,0.00046849,120]
[355671595,1741451440626,-500.0,0.00046849,120]
[355671597,1741451440635,-500.0,0.00046849,120]
[355671599,1741451440645,-500.0,0.00046849,120]
[355671601,1741451440654,-499.25887115,0.00046849,120]
[355671603,1741451440666,-757.63,0.00046849,120]
[355671604,1741451440676,-769.52,0.00046849,120]
[355671606,1741451440686,-500.0,0.00046849,120]
[355671608,1741451440695,-532.11,0.00046849,120]
[355671610,1741451440705,-500.0,0.00046849,2]
[355671611,1741451440715,-533.37,0.00046849,2]
[355671613,1741451440724,-476.92,0.00046849,2]
[355671615,1741451440734,-500.0,0.00046849,120]
[355671617,1741451440744,-500.0,0.00046873,10]
[355671619,1741451440754,-500.0,0.00046873,10]
[355671620,1741451440764,-500.0,0.00046873,10]
[355671622,1741451440774,-500.0,0.00046873,2]
[355671624,1741451440783,-157.11897997,0.00046873,10]
[355671626,1741451440792,-500.0,0.00046873,10]
[355671628,1741451440802,-500.0,0.00046873,10]
[355671630,1741451440811,-500.0,0.00046873,10]
[355671632,1741451440821,-500.0,0.00046873,10]
[355671634,1741451440831,-500.0,0.00046873,10]
[355671636,1741451440840,-164.1019145,0.00047113,4]
[355671638,1741451440850,-500.0,0.0004712,120]
[355671640,1741451440860,-500.0,0.00047122,120]
[355671642,1741451440871,-500.0,0.00047122,120]
[355671644,1741451440881,-500.0,0.00047122,120]
[355671646,1741451440890,-500.0,0.00047122,120]
[355671648,1741451440899,-500.0,0.00047122,120]
[355671650,1741451440909,-500.0,0.00047122,120]
[355671652,1741451440918,-500.0,0.00047123,120]
[355671654,1741451440927,-191.94429845,0.00047123,120]
[355671656,1741451440937,-500.0,0.00047123,120]
[355671658,1741451440946,-500.0,0.00047123,120]
[355671660,1741451440955,-500.0,0.00047123,120]
[355671661,1741451440965,-500.0,0.00047123,120]
[355671662,1741451440974,-500.0,0.00047123,120]
[355671663,1741451440984,-500.97,0.00047123,120]
[355671664,1741451440993,-500.0,0.00047123,120]
[355671665,1741451441003,-500.0,0.00047123,120]
[355671666,1741451441013,-500.0,0.00047123,120]
[355671667,1741451441022,-528.89,0.00047123,120]
[355671668,1741451441032,-1102.06,0.00047123,120]
[355671669,1741451441042,-500.0,0.00047123,120]
[355671670,1741451441051,-500.0,0.00047123,120]
[355671671,1741451441061,-500.0,0.00047123,120]
[355671672,1741451441070,-500.0,0.00047123,120]
[355671673,1741451441080,-500.0,0.00047123,120]
[355671674,1741451441090,-2067.1,0.00047123,120]
[355671675,1741451441099,-500.0,0.00047123,120]
[355671676,1741451441109,-500.0,0.00047123,120]
[355671677,1741451441119,-500.0,0.00047123,120]
[355671678,1741451441129,-500.0,0.00047123,120]
[355671679,1741451441138,-500.0,0.00047123,120]
[355671680,1741451441148,-2681.45,0.00047123,2]
[355671681,1741451441158,-586.88,0.00047123,120]
[355671682,1741451441167,-500.0,0.00047123,120]
[355671683,1741451441177,-500.0,0.00047123,120]
[355671684,1741451441187,-517.36,0.00047123,120]
[355671685,1741451441196,-500.0,0.00047123,120]
[355671686,1741451441206,-547.04,0.00047123,120]
[355671687,1741451441216,-500.0,0.00047123,120]
[355671688,1741451441226,-500.0,0.00047123,120]
[355671689,1741451441235,-3568.64,0.00047123,120]
[355671690,1741451441245,-500.0,0.00047123,120]
[355671691,1741451441254,-500.0,0.00047123,120]
[355671692,1741451441264,-8885.22,0.00047123,7]
[355671693,1741451441274,-9188.01,0.00047123,120]
[355671694,1741451441284,-2637.8,0.00047123,120]
[355671696,1741451441293,-500.0,0.00047123,120]
[355671697,1741451441303,-500.0,0.00047123,120]
[355671698,1741451441312,-696.54,0.00047123,120]
[355671700,1741451441322,-3766.75,0.00047123,120]
[355671701,1741451441331,-1421.86,0.00047123,120]
[355671703,1741451441341,-516.52915688,0.00047123,120]
[355671705,1741451441350,-524.7181891,0.00047123,120]
[355671707,1741451441362,-500.0,0.00047123,120]
[355671709,1741451441372,-757.63,0.00047123,120]
[355671711,1741451441382,-769.52,0.00047123,120]
[355671713,1741451441391,-500.0,0.00047123,120]
[355671715,1741451441400,-532.11,0.00047123,120]
[355671717,1741451441409,-437.50401602,0.00047123,2]
[355671719,1741451441419,-533.37,0.00047123,2]
[355671721,1741451441428,-500.0,0.00047123,120]
[355671723,1741451441437,-500.93026466,0.00047373,10]
[355671725,1741451441447,-500.0,0.00047373,10]
[355671727,1741451441456,-164.1019145,0.00047377,4]
[355671729,1741451441465,-164.1019145,0.00047387,4]
[355671731,1741451441475,-500.0,0.00047395,120]
[355671733,1741451441484,-500.0,0.00047396,120]
[355671735,1741451441494,-500.0,0.00047396,120]
[355671737,1741451441503,-500.53,0.00047396,120]
[355671739,1741451441512,-500.0,0.00047396,120]
[355671741,1741451441521,-500.0,0.00047396,120]
[355671743,1741451441530,-500.0,0.00047397,120]
[355671745,1741451441540,-500.0,0.00047397,120]
[355671747,1741451441548,-500.0,0.00047397,120]
[355671749,1741451441558,-500.0,0.00047397,120]
[355671751,1741451441567,-500.0,0.00047397,120]
[355671753,1741451441576,-500.0,0.00047397,120]
[355671755,1741451441586,-500.97,0.00047397,120]
[355671757,1741451441597,-500.0,0.00047397,120]
[355671759,1741451441606,-500.0,0.00047397,120]
[355671761,1741451441617,-500.0,0.00047397,120]
[355671763,1741451441627,-528.89,0.00047397,120]
[355671765,1741451441636,-1102.06,0.00047397,120]
[355671767,1741451441646,-500.0,0.00047397,120]
[355671769,1741451441655,-500.0,0.00047397,120]
[355671771,1741451441668,-500.0,0.00047397,120]
[355671773,1741451441677,-500.0,0.00047397,120]
[355671775,1741451441687,-500.0,0.00047397,120]
[355671777,1741451441697,-2067.1,0.00047397,120]
[355671779,1741451441708,-500.0,0.00047397,120]
[355671781,1741451441718,-500.0,0.00047397,120]
[355671783,1741451441727,-500.0,0.00047397,120]
[355671785,1741451441737,-500.0,0.00047397,120]
[355671787,1741451441747,-540.25343236,0.00047397,120]
[355671789,1741451441758,-2681.45,0.00047397,2]
[355671791,1741451441767,-586.88,0.00047397,120]
[355671793,1741451441776,-500.0,0.00047397,120]
[355671795,1741451441786,-500.0,0.00047397,120]
[355671797,1741451441795,-517.36,0.00047397,120]
[355671799,1741451441804,-500.0,0.00047397,120]
[355671801,1741451441813,-547.04,0.00047397,120]
[355671803,1741451441823,-500.0,0.00047397,120]
[355671805,1741451441832,-500.0,0.00047397,120]
[355671807,1741451441841,-3568.64,0.00047397,120]
[355671809,1741451441850,-500.0,0.00047397,120]
[355671811,1741451441859,-500.0,0.00047397,120]
[355671813,1741451441869,-8885.22,0.00047397,7]
[355671815,1741451441879,-9188.01,0.00047397,120]
[355671817,1741451441888,-2637.8,0.00047397,120]
[355671830,1741451441998,-500.0,0.00047397,120]
[355671832,1741451442010,-500.0,0.00047397,120]
[355671834,1741451442020,-696.54,0.00047397,120]
[355671836,1741451442029,-3766.75,0.00047397,120]
[355671838,1741451442038,-1421.86,0.00047397,120]
[355671840,1741451442048,-500.0,0.00047397,120]
[355671842,1741451442058,-757.63,0.00047397,120]
[355671844,1741451442066,-769.52,0.00047397,120]
[355671846,1741451442076,-500.0,0.00047397,120]
[355671848,1741451442085,-532.11,0.00047397,120]
[355671850,1741451442095,-533.37,0.00047397,2]
[355671852,1741451442104,-500.0,0.00047397,120]
[355671854,1741451442114,-194.38866571,0.00047433,120]
[355671856,1741451442123,-416.66666667,0.00047469,2]
[355671858,1741451442133,-500.0,0.00047542,120]
[355671860,1741451442143,-500.0,0.00047542,120]
[355671862,1741451442152,-500.0,0.00047542,120]
[355671864,1741451442162,-374.2,0.00047542,120]
[355671866,1741451442171,-151.0,0.00047543,120]
[355671868,1741451442182,-559.089784,0.00047543,120]
[355671870,1741451442192,-559.089784,0.00047543,120]
[355671872,1741451442202,-3000.0,0.00047543,2]
[355671874,1741451442219,-500.0,0.00047573,10]
[355671876,1741451442228,-164.1019145,0.00047661,4]
[355671878,1741451442237,-1224.78,0.00047668,120]
[355671880,1741451442247,-500.0,0.0004767,120]
[355671882,1741451442256,-500.0,0.0004767,120]
[355671884,1741451442265,-151.0,0.0004767,120]
[355671886,1741451442275,-280.013922,0.0004767,120]
[355671888,1741451442285,-400.901324,0.0004767,120]
[355671890,1741451442294,-500.0,0.00047671,120]
[355671892,1741451442303,-500.0,0.00047671,120]
[355671894,1741451442312,-500.0,0.00047671,120]
[355671896,1741451442321,-500.0,0.00047671,120]
[355671898,1741451442331,-500.0,0.00047671,120]
[355671900,1741451442341,-500.0,0.00047671,120]
[355671902,1741451442350,-500.97,0.00047671,120]
[355671904,1741451442360,-500.0,0.00047671,120]
[355671906,1741451442370,-500.0,0.00047671,120]
[355671908,1741451442379,-500.0,0.00047671,120]
[355671910,1741451442389,-528.89,0.00047671,120]
[355671912,1741451442398,-1102.06,0.00047671,120]
[355671914,1741451442408,-500.0,0.00047671,120]
[355671916,1741451442417,-500.0,0.00047671,120]
[355671918,1741451442427,-500.0,0.00047671,120]
[355671920,1741451442437,-500.0,0.00047671,120]
[355671922,1741451442446,-535.48921365,0.00047671,120]
[355671924,1741451442456,-2067.1,0.00047671,120]
[355671926,1741451442465,-500.0,0.00047671,120]
[355671928,1741451442474,-500.0,0.00047671,120]
[355671930,1741451442483,-500.0,0.00047671,120]
[355671932,1741451442492,-474.54060468,0.00047671,120]
[355671934,1741451442502,-2681.45,0.00047671,2]
[355671936,1741451442511,-586.88,0.00047671,120]
[355671938,1741451442521,-500.0,0.00047671,120]
[355671940,1741451442530,-500.0,0.00047671,120]
[355671942,1741451442539,-517.36,0.00047671,120]
[355671944,1741451442549,-500.0,0.00047671,120]
[355671946,1741451442558,-547.04,0.00047671,120]
[355671948,1741451442569,-500.0,0.00047671,120]
[355671950,1741451442578,-500.0,0.00047671,120]
[355671951,1741451442588,-3568.64,0.00047671,120]
[355671953,1741451442597,-151.0,0.00047671,120]
[355671955,1741451442606,-151.0,0.00047671,120]
[355671957,1741451442617,-500.0,0.00047671,120]
[355671960,1741451442627,-500.0,0.00047671,120]
[355671962,1741451442637,-8885.22,0.00047671,7]
[355671963,1741451442646,-9188.01,0.00047671,120]
[355671966,1741451442656,-2637.8,0.00047671,120]
[355671967,1741451442667,-500.0,0.00047671,120]
[355671969,1741451442677,-500.0,0.00047671,120]
[355671972,1741451442687,-696.54,0.00047671,120]
[355671974,1741451442696,-3766.75,0.00047671,120]
[355671975,1741451442707,-1421.86,0.00047671,120]
[355671977,1741451442716,-500.0,0.00047671,120]
[355671979,1741451442725,-757.63,0.00047671,120]
[355671981,1741451442735,-769.52,0.00047671,120]
[355671983,1741451442746,-500.0,0.00047671,120]
[355671986,1741451442756,-151.0,0.00047671,120]
[355671987,1741451442766,-532.11,0.00047671,120]
[355671990,1741451442775,-533.37,0.00047671,2]
[355671992,1741451442785,-151.0,0.00047671,120]
[355671994,1741451442794,-500.0,0.00047671,120]